bitfinex/quotes_ETHUSD_20250603
["timestamp","ask_amount","ask_price","bid_price","bid_amount"]
[1748977581989,4.66624652,2624.5,2624.1,9.61]
[1748977582404,3.81041162,2624.4,2624.0,1.61]
[1748977582705,4.6663186,2624.5,2624.1,8.0]
[1748977582999,4.6663186,2624.5,2624.1,14.216]
[1748977583206,4.6663186,2624.5,2624.1,18.02682615]
[1748977583402,0.85599695,2624.5,2624.1,11.81082615]
[1748977583609,0.85599695,2624.5,2624.1,18.02482615]
[1748977583802,3.81017359,2624.6,2624.1,18.02482615]
[1748977583991,3.81032796,2624.5,2624.1,14.214]
[1748977584391,3.81020239,2624.6,2624.2,8.0]
[1748977584598,4.74979267,2624.7,2624.2,11.81068345]
[1748977584930,5.60775984,2624.7,2624.2,11.81068345]
[1748977585523,3.81018067,2624.6,2624.2,8.0]
[1748977585699,3.81026461,2624.5,2624.1,8.0]
[1748977585899,3.80850623,2624.6,2624.1,18.02280688]
[1748977586626,3.80850623,2624.6,2624.1,11.81080688]
[1748977586827,0.56061734,2624.5,2624.1,18.02180688]
[1748977587321,1.79766717,2624.7,2624.1,14.211]
[1748977587498,1.79766717,2624.7,2624.1,18.02174471]
[1748977587499,3.81010922,2624.6,2624.1,18.02174471]
[1748977587701,3.81010922,2624.6,2624.1,18.02074471]
[1748977588021,1.79766717,2624.7,2624.1,14.21]
[1748977588222,3.81019176,2624.6,2624.1,18.02080947]
[1748977588835,3.81019176,2624.6,2624.2,3.81067636]
[1748977589337,0.8594,2624.3,2623.4,0.5738]
[1748977589558,3.81106744,2624.0,2623.6,6.21]
[1748977589836,0.8594,2624.1,2623.1,4.36937857]
[1748977590057,3.81133787,2623.8,2623.4,8.0]
[1748977590333,3.8113506,2623.8,2623.4,1.61]
[1748977590532,3.81112085,2623.9,2623.4,5.4218468]
[1748977591038,3.81112085,2623.9,2623.4,10.0248468]
[1748977591205,3.81131078,2623.8,2623.4,6.213]
[1748977591403,3.81119071,2623.9,2623.4,10.02483057]
[1748977591610,0.76222263,2623.8,2623.4,3.81183984]
[1748977591834,0.76222263,2623.8,2623.3,8.38538556]
[1748977592043,3.81121725,2623.9,2623.3,12.19724269]
[1748977592205,3.81121725,2623.9,2623.4,3.81175941]
[1748977592406,3.81121725,2623.9,2623.3,8.38538556]
[1748977592407,3.81104469,2624.0,2623.5,3.81168454]
[1748977592736,0.8594,2624.1,2623.4,3.81184722]
[1748977592936,0.8594,2624.1,2623.3,12.75476413]
[1748977593137,3.81034502,2624.5,2623.8,8.18060139]
[1748977593365,3.81010439,2624.6,2623.8,8.18060139]
[1748977593366,0.76204494,2624.4,2623.8,12.19537857]
[1748977593638,0.9282,2624.7,2624.3,3.81046078]
[1748977594025,0.9282,2624.7,2624.4,3.81029131]
[1748977594228,4.75791676,2624.9,2624.4,3.81029131]
[1748977594442,0.9482,2624.9,2624.3,3.81046078]
[1748977594754,0.9482,2624.9,2624.4,3.81025825]
[1748977594949,4.28562403,2624.8,2624.3,10.02839614]
[1748977595152,0.47577722,2624.8,2624.3,10.02839614]
[1748977595299,4.75795076,2624.9,2624.4,3.8103783]
[1748977595799,0.9482,2624.9,2624.4,3.8103783]
[1748977596043,4.75793172,2624.9,2624.4,3.8103783]
[1748977596453,3.80981696,2624.8,2624.3,10.02847122]
[1748977597126,0.9482,2624.9,2624.3,6.218]
[1748977597329,0.02,2624.9,2624.3,6.218]
[1748977597533,0.02,2624.9,2624.5,3.81016612]
[1748977597739,0.40295411,2624.9,2624.5,3.81016612]
[1748977597905,4.21262761,2624.9,2624.4,5.4203535]
[1748977598324,0.40295411,2624.9,2624.4,5.4203535]
[1748977598519,0.40295411,2624.9,2624.5,3.81023907]
[1748977598720,0.02,2624.9,2624.8,8.17919265]
[1748977598938,0.02,2624.9,2624.8,14.39819265]
[1748977599138,0.02,2624.9,2624.8,6.219]
[1748977599936,0.02,2624.9,2624.6,0.7]
[1748977600140,0.02,2624.9,2624.8,7.831]
[1748977600450,0.02,2624.9,2624.6,0.7]
[1748977600651,0.02,2624.9,2624.7,7.831]
[1748977602254,0.02,2624.9,2624.6,8.528]
[1748977602456,0.02,2624.9,2624.6,12.33809125]
[1748977603730,0.02,2624.9,2624.6,12.33709125]
[1748977604540,0.02,2624.9,2624.6,4.51009125]
[1748977604870,0.02,2624.9,2624.6,0.7]
[1748977605072,0.49637258,2624.9,2624.6,0.7]
[1748977605260,3.82970184,2624.9,2624.6,0.7]
[1748977605768,3.80995923,2624.7,2624.6,0.7]
[1748977606272,3.80989462,2624.8,2624.6,0.7]
[1748977606453,3.80995923,2624.7,2624.6,0.7]
[1748977607880,4.71475923,2624.7,2624.6,0.7]
[1748977608079,5.56921928,2624.7,2624.6,0.7]
[1748977612558,0.85446005,2624.7,2624.6,0.7]
[1748977612758,4.74133504,2624.9,2624.6,0.7]
[1748977613553,3.80995923,2624.7,2624.6,0.7]
[1748977613755,3.80990092,2624.8,2624.6,0.7]
[1748977615498,0.9316,2624.9,2624.6,0.7]
[1748977615798,3.80987622,2624.8,2624.6,0.7]
[1748977616501,0.85510534,2624.8,2624.6,0.7]
[1748977616674,3.80995923,2624.7,2624.6,0.7]
[1748977617558,3.80989387,2624.8,2624.6,0.7]
[1748977618175,0.9316,2624.9,2624.6,0.7]
[1748977618379,4.74131608,2624.9,2624.6,0.7]
[1748977618984,3.80983713,2624.8,2624.6,0.7]
[1748977620204,3.80995923,2624.7,2624.6,0.7]
[1748977623121,4.75785923,2624.7,2624.6,0.1927]
[1748977623320,4.75785923,2624.7,2623.6,8.0]
[1748977623321,3.8109756,2624.0,2623.6,8.0]
[1748977623480,4.75881362,2624.1,2623.7,6.209]
[1748977623677,3.81108739,2624.0,2623.6,8.0]
[1748977623922,3.81105153,2624.0,2623.6,6.209]
[1748977624102,3.81105153,2624.0,2623.7,8.0]
[1748977624306,4.75880344,2624.1,2623.7,8.0]
[1748977624509,3.8109756,2624.0,2623.5,0.0796]
[1748977624707,3.81148594,2623.7,2623.4,0.66666667]
[1748977624905,3.81133765,2623.8,2623.4,6.87766667]
[1748977625110,3.81133765,2623.8,2623.5,8.0]
[1748977625426,3.81118297,2623.9,2623.5,8.0]
[1748977626126,3.81128916,2623.8,2623.5,8.0]
[1748977626426,3.81142036,2623.7,2623.5,8.0]
[1748977626730,3.81170192,2623.5,2623.4,0.66666667]
[1748977627633,4.66728022,2623.5,2623.4,0.66666667]
[1748977627937,5.59878022,2623.5,2623.4,0.66666667]
[1748977630431,5.58846346,2623.5,2623.4,0.66666667]
[1748977633640,4.65696346,2623.5,2623.4,0.66666667]
[1748977633806,3.81147004,2623.7,2623.4,0.66666667]
[1748977633994,3.81161504,2623.6,2623.4,0.66666667]
[1748977634410,3.81161866,2623.6,2623.4,0.66666667]
[1748977635837,3.81170192,2623.5,2623.4,0.66666667]
[1748977636133,3.81170192,2623.5,2623.1,1.15255013]
[1748977636596,3.81151071,2623.7,2623.0,6.219]
[1748977636597,3.81141136,2623.7,2623.0,6.219]
[1748977636801,3.81192411,2623.4,2623.0,6.219]
[1748977638321,0.47127114,2623.6,2622.5,0.21011204]
[1748977638522,4.71348837,2623.2,2622.7,8.0]
[1748977638863,3.81235053,2623.1,2622.7,8.0]
[1748977639635,3.81235053,2623.1,2622.7,11.81283676]
[1748977639839,3.81229367,2623.1,2622.7,11.81283676]
[1748977640064,3.81206778,2623.3,2622.9,8.0]
[1748977640194,3.8119319,2623.4,2622.9,11.81255187]
[1748977640397,3.8119319,2623.4,2622.9,8.0]
[1748977640646,3.81199252,2623.3,2622.9,8.0]
[1748977640846,3.81186011,2623.4,2622.9,11.81255674]
[1748977641021,3.81181438,2623.5,2623.0,3.81236356]
[1748977641358,3.81186064,2623.4,2622.9,11.81253505]
[1748977641554,3.81201079,2623.3,2622.9,11.81253505]
[1748977642553,3.81201079,2623.3,2622.9,8.0]
[1748977642853,3.8120667,2623.3,2622.9,8.0]
[1748977643904,3.81210925,2623.3,2622.9,8.0]
[1748977644146,10.93172565,2623.7,2622.9,8.0]
[1748977644147,0.9013,2623.7,2623.0,3.81242851]
[1748977644361,3.81152991,2623.7,2623.2,3.81205859]
[1748977644535,3.81127491,2623.8,2623.3,3.81188263]
[1748977644718,3.81088542,2624.1,2623.4,17.05524131]
[1748977644918,4.73515549,2624.5,2623.5,3.81164715]
[1748977645157,3.8110537,2624.0,2623.4,20.86694342]
[1748977645353,3.8110537,2624.0,2623.5,3.81163601]
[1748977645558,3.81091204,2624.1,2623.4,20.86694342]
[1748977645757,3.81103096,2624.0,2623.5,3.81167741]
[1748977645921,3.81112694,2623.9,2623.4,20.86701472]
[1748977646127,3.81119152,2623.9,2623.4,20.86707931]
[1748977646323,3.81128556,2623.8,2623.4,17.05524131]
[1748977646570,3.81104653,2624.0,2623.5,6.221]
[1748977646882,0.38110465,2624.0,2623.5,6.221]
[1748977647022,3.81104252,2624.0,2623.5,10.03264978]
[1748977647837,3.81112256,2623.9,2623.5,6.221]
[1748977648912,3.8110518,2624.0,2623.5,10.03267734]
[1748977649168,3.81087982,2624.1,2623.6,3.81150534]
[1748977649538,3.81087982,2624.1,2623.5,10.03264177]
[1748977649739,3.81097666,2624.0,2623.5,6.221]
[1748977649959,3.81097666,2624.0,2623.5,10.03265267]
[1748977650186,0.928,2624.3,2623.3,11.81198639]
[1748977650427,3.81133496,2623.8,2623.5,8.0]
[1748977650920,0.47352171,2624.4,2622.9,8.0]
[1748977650921,3.81167614,2623.6,2622.9,8.0]
[1748977651123,3.81177185,2623.5,2623.1,8.0]
[1748977651332,3.8116274,2623.6,2623.1,3.81228144]
[1748977651933,3.81162862,2623.6,2623.1,3.81228144]
[1748977652272,3.81206809,2623.3,2622.7,1.613]
[1748977652477,3.81227642,2623.2,2622.8,6.223]
[1748977652677,3.81227642,2623.2,2622.9,8.0]
[1748977652895,3.81227642,2623.2,2622.8,6.223]
[1748977653183,3.81227642,2623.2,2622.9,8.0]
[1748977653349,3.81207158,2623.3,2622.9,8.0]
[1748977653549,0.928,2623.4,2623.0,3.81236738]
[1748977653750,4.19291505,2623.5,2623.0,3.81236738]
[1748977653988,3.81191883,2623.4,2622.9,11.81248517]
[1748977654282,4.55400908,2623.4,2622.9,11.81248517]
[1748977654642,3.8120215,2623.3,2622.9,11.81248517]
[1748977655047,3.8120215,2623.3,2622.9,8.0]
[1748977655490,3.8120215,2623.3,2622.9,11.81256911]
[1748977655787,3.8118839,2623.4,2622.9,11.81256911]
[1748977656078,3.81184722,2623.4,2622.9,11.81256261]
[1748977656285,3.81200728,2623.3,2622.9,11.81256261]
[1748977657090,4.19288684,2623.5,2622.9,11.81256261]
[1748977657303,3.81193263,2623.4,2622.9,11.81256261]
[1748977657595,4.19290858,2623.5,2623.0,3.81230779]
[1748977657766,3.81149621,2623.7,2623.2,3.8121074]
[1748977658081,3.81155032,2623.7,2623.2,3.8121074]
[1748977658270,3.81148135,2623.7,2623.2,3.8121074]
[1748977658444,7.0857,2623.9,2622.9,8.0]
[1748977658641,3.81115647,2623.9,2623.1,9.05524131]
[1748977658842,3.81124117,2623.9,2623.4,3.81183605]
[1748977659047,0.8693,2624.1,2623.4,8.0]
[1748977659282,3.8112661,2623.8,2623.4,8.0]
[1748977659589,3.81140275,2623.8,2623.4,8.0]
[1748977660284,0.6293996,2624.0,2623.3,15.833]
[1748977660455,3.81136675,2623.8,2623.3,19.6449608]
[1748977660663,3.81149762,2623.7,2623.3,14.22]
[1748977660870,3.81149762,2623.7,2623.3,18.03198684]
[1748977661267,3.81148235,2623.7,2623.3,14.22]
[1748977662184,3.81148235,2623.7,2623.1,1.613]
[1748977662359,1.69907868,2623.7,2623.0,1.613]
[1748977662549,3.81182378,2623.5,2623.0,5.42542603]
[1748977666363,3.81187875,2623.4,2623.0,1.613]
[1748977666754,3.81199721,2623.3,2622.9,1.913]
[1748977667051,3.81224248,2623.2,2622.9,0.3]
[1748977667255,3.81199721,2623.3,2622.9,6.515]
[1748977667256,3.81206602,2623.3,2622.9,6.515]
[1748977668595,3.81208254,2623.3,2622.9,0.3]
[1748977668749,3.81208254,2623.3,2622.9,4.11256683]
[1748977669568,3.81208254,2623.3,2622.9,0.3]
[1748977670497,0.9368,2623.7,2623.1,3.81220853]
[1748977670676,0.9368,2623.7,2623.0,9.05524131]
[1748977671186,0.9368,2623.7,2623.0,4.35423895]
[1748977672508,0.9368,2623.7,2622.9,0.3]
[1748977676525,0.9368,2623.7,2623.2,4.35423895]
[1748977678839,0.9522,2624.2,2623.4,4.35423895]
[1748977679137,0.9522,2624.2,2623.6,4.39863895]
[1748977679895,0.9522,2624.2,2623.4,12.23663895]
[1748977680299,0.9522,2624.2,2623.6,4.35423895]
[1748977685544,0.9522,2624.2,2623.5,1.607]
[1748977688005,0.9331,2624.5,2623.5,1.607]
[1748977688204,0.5287339,2624.4,2623.5,1.607]
[1748977689541,0.5287339,2624.4,2623.6,4.35423895]
[1748977689908,0.9331,2624.5,2623.6,4.35423895]
[1748977691323,0.9331,2624.5,2623.8,4.35423895]
[1748977693949,0.9331,2624.5,2623.6,10.0]
[1748977693950,0.9331,2624.5,2624.0,4.35423895]
[1748977695456,0.02,2624.9,2624.0,1.607]
[1748977695614,0.02,2624.9,2624.7,4.35423895]
[1748977695821,0.02,2624.9,2624.5,4.35423895]
[1748977697262,0.02,2624.9,2624.5,4.74113554]
[1748977697559,0.02,2624.9,2624.2,8.0]
[1748977697746,0.9868,2624.9,2624.2,12.35423895]
[1748977697918,0.9868,2624.9,2624.3,1.607]
[1748977699151,0.9868,2624.9,2624.4,1.607]
[1748977699454,0.9868,2624.9,2624.1,6.259]
[1748977699455,0.9668,2624.8,2624.1,0.38769605]
[1748977699636,0.9668,2624.6,2623.9,8.0]
[1748977699955,0.9668,2624.6,2623.8,1.607]
[1748977700152,0.9668,2624.6,2623.8,9.607]
[1748977700932,0.9668,2624.6,2623.8,13.96123895]
[1748977701268,0.9668,2624.6,2623.8,9.607]
[1748977703276,0.9668,2624.6,2623.8,1.99499174]
[1748977705695,0.9668,2624.6,2623.3,8.0377]
[1748977705869,0.9668,2624.6,2623.4,1.633]
[1748977706067,0.9668,2624.6,2623.4,2.0191264]
[1748977706391,0.9668,2624.6,2623.4,0.3861264]
[1748977706392,9.05129737,2624.6,2623.4,0.3861264]
[1748977706592,0.9391,2624.4,2623.5,1.633]
[1748977716523,0.9391,2624.4,2623.4,2.01321814]
[1748977716724,0.9391,2624.4,2623.4,1.633]
[1748977717837,0.9391,2624.4,2623.3,8.0]
[1748977718045,0.9391,2624.4,2623.4,1.633]
[1748977720376,0.9391,2624.4,2623.4,2.02220787]
[1748977723208,0.9391,2624.4,2623.6,4.35218923]
[1748977723712,0.9391,2624.4,2623.8,4.35218923]
[1748977724242,0.9391,2624.4,2623.4,0.38920787]
[1748977724483,0.9391,2624.4,2623.5,1.633]
[1748977725085,4.35218923,2624.2,2623.2,0.51]
[1748977725255,0.57,2624.9,2623.2,0.51]
[1748977725256,0.9161,2623.9,2623.2,2.00926076]
[1748977726379,0.9161,2623.9,2623.2,1.633]
[1748977728069,0.9161,2623.9,2623.2,2.17812322]
[1748977728378,0.9161,2623.9,2623.2,1.633]
[1748977737304,0.9161,2623.9,2623.3,4.35218923]
[1748977737713,0.9161,2623.9,2623.5,4.35218923]
[1748977737912,0.9161,2623.9,2623.7,4.35218923]
[1748977738295,0.8726,2624.1,2623.7,4.35218923]
[1748977738932,0.8726,2624.1,2623.8,1.617]
[1748977744140,0.8726,2624.1,2623.6,1.617]
[1748977753383,0.8726,2624.1,2623.5,1.617]
[1748977760488,0.8726,2624.1,2623.0,0.51]
[1748977760489,0.9102,2624.0,2623.3,1.617]
[1748977760691,0.9102,2623.8,2623.3,1.617]
[1748977762022,0.9102,2623.8,2623.5,0.7]
[1748977763628,0.9102,2623.8,2623.2,5.96918923]
[1748977766122,0.9102,2623.8,2623.2,1.617]
[1748977767330,0.9102,2623.8,2623.2,1.608]
[1748977767792,0.9102,2623.8,2623.1,8.0]
[1748977767993,0.9102,2623.8,2623.2,1.608]
[1748977769320,0.9406,2623.6,2623.0,1.608]
[1748977778948,0.9112,2623.0,2622.3,0.51]
[1748977779097,0.9112,2622.8,2622.2,1.608]
[1748977779420,0.9112,2622.8,2622.2,1.98191791]
[1748977781433,4.35218923,2622.7,2622.2,1.608]
[1748977781641,0.9026,2622.6,2622.1,0.02]
[1748977790256,0.9067,2622.9,2622.4,4.35218923]
[1748977790459,0.9067,2622.9,2622.5,1.608]
[1748977791060,0.9067,2622.9,2622.6,0.7]
[1748977793422,0.9067,2622.9,2622.3,4.35218923]
[1748977793651,0.9067,2622.9,2622.5,1.608]
[1748977797378,0.9563,2623.1,2622.5,5.96018923]
[1748977797671,0.02,2623.9,2622.5,5.96018923]
[1748977797672,0.8913,2623.7,2622.5,5.96018923]
[1748977797829,0.8913,2623.5,2622.5,5.96018923]
[1748977799771,0.8913,2623.1,2622.6,1.608]
[1748977800471,0.8913,2622.9,2622.4,1.608]
[1748977803072,4.35218923,2622.8,2621.9,0.699905]
[1748977803386,0.9037,2622.5,2622.0,1.608]
[1748977804856,0.9037,2622.5,2622.0,5.96018923]
[1748977805254,0.9037,2622.5,2622.0,1.608]
[1748977805580,0.9037,2622.4,2621.8,1.608]
[1748977805752,0.9037,2622.2,2621.8,1.608]
[1748977810006,0.9037,2622.2,2621.4,8.0]
[1748977810214,0.9037,2622.2,2621.5,1.608]
[1748977811614,0.9037,2622.2,2621.7,0.7]
[1748977815432,0.8796,2622.0,2621.4,9.608]
[1748977815728,0.8796,2621.9,2621.4,1.608]
[1748977817478,0.8796,2621.9,2621.4,1.9894909]
[1748977820241,0.8796,2621.9,2621.3,8.227]
[1748977820521,5.29088923,2621.8,2621.3,8.227]
[1748977820682,4.35218923,2621.4,2621.1,0.02]
[1748977820883,0.9387,2621.3,2621.1,0.02]
[1748977822619,5.27788923,2621.2,2621.1,0.02]
[1748977823997,0.9257,2621.2,2621.1,0.02]
[1748977840757,0.9257,2621.2,2620.6,1.609]
[1748977842154,5.27788923,2621.2,2620.6,1.609]
[1748977842357,5.80567815,2621.2,2620.6,1.609]
[1748977842586,5.80567815,2621.2,2620.5,1.609]
[1748977842790,1.45348892,2621.2,2620.5,1.609]
[1748977845259,0.9257,2621.2,2620.5,1.609]
[1748977845494,0.9257,2621.2,2620.5,1.98727617]
[1748977846472,4.35218923,2621.2,2620.5,1.609]
[1748977846685,0.9309,2621.1,2620.4,1.609]
[1748977856879,0.9063,2620.9,2620.4,1.609]
[1748977858977,0.9063,2620.9,2620.3,1.608]
[1748977863935,0.9401,2620.7,2620.3,1.608]
[1748977865832,0.9437,2620.3,2619.7,10.352]
[1748977866129,0.9437,2620.3,2619.7,9.842]
[1748977866832,0.9437,2620.3,2620.0,4.35218923]
[1748977866996,0.9077,2620.5,2619.8,4.35218923]
[1748977867524,0.4077,2620.5,2619.7,8.234]
[1748977867724,0.4077,2620.5,2619.8,0.3805]
[1748977868229,4.82817815,2620.5,2619.8,8.0]
[1748977868412,4.35218923,2620.5,2619.8,8.0]
[1748977870636,0.898,2620.4,2619.8,8.0]
[1748977871785,4.35218923,2620.3,2619.8,8.0]
[1748977871983,4.35218923,2620.1,2619.7,9.842]
[1748977872186,0.8989,2620.0,2619.4,1.608]
[1748977873087,0.8989,2619.8,2619.4,1.608]
[1748977873889,0.8989,2619.8,2619.3,1.608]
[1748977874191,0.8989,2619.8,2618.8,10.0]
[1748977874192,0.8989,2619.8,2619.1,1.608]
[1748977874429,0.8814,2619.7,2619.1,1.608]
[1748977879859,0.9321,2619.6,2618.9,1.608]
[1748977881943,0.9321,2619.6,2618.8,8.0]
[1748977882127,0.9321,2619.6,2618.8,9.608]
[1748977882458,4.35218923,2619.3,2618.6,8.236]
[1748977882599,0.8977,2619.2,2618.6,8.236]
[1748977882803,0.8977,2619.2,2618.8,4.35218923]
[1748977883044,0.8977,2619.9,2619.0,4.35218923]
[1748977885902,0.8977,2619.9,2619.1,9.609]
[1748977886149,0.8977,2619.9,2619.3,8.0]
[1748977886519,0.8977,2619.9,2619.4,4.35218923]
[1748977892513,0.9774,2620.4,2619.6,4.35218923]
[1748977892713,0.9774,2620.4,2619.8,4.35218923]
[1748977893446,0.9774,2620.4,2619.7,1.608]
[1748977894358,0.9774,2620.4,2619.8,0.112]
[1748977895647,0.9774,2620.4,2619.8,0.49844708]
[1748977898127,0.9774,2620.4,2619.8,0.38644708]
[1748977898328,0.9774,2620.4,2619.7,1.608]
[1748977899832,0.9774,2620.4,2619.8,1.607]
[1748977903374,0.9774,2620.4,2619.8,1.98904174]
[1748977923940,0.9774,2620.4,2619.9,4.35218923]
[1748977924237,0.9774,2620.4,2620.1,4.35218923]
[1748977924599,0.9185,2620.8,2620.1,4.35218923]
[1748977928427,0.9185,2620.8,2620.3,4.35218923]
[1748977928627,0.9185,2620.8,2620.4,1.606]
[1748977929034,0.02,2620.9,2620.7,4.35218923]
[1748977929195,0.02,2620.9,2620.7,4.86934767]
[1748977929394,0.9058,2621.2,2620.7,4.86934767]
[1748977929602,0.9058,2621.2,2620.7,0.51715844]
[1748977929828,0.9058,2621.2,2620.7,1.606]
[1748977930238,0.9058,2621.2,2620.3,4.35218923]
[1748977930437,0.9663,2621.0,2619.9,2.428613]
[1748977930734,0.9663,2620.8,2620.2,1.606]
[1748977942958,0.9663,2620.8,2620.3,1.606]
[1748977943958,0.9663,2620.8,2620.5,0.7]
[1748977950729,0.9663,2620.8,2620.0,1.605]
[1748977951463,0.9663,2620.8,2620.1,4.35218923]
[1748977954285,0.9663,2620.8,2620.2,1.605]
[1748977960050,0.9825,2621.0,2620.7,4.35218923]
[1748977960290,6.275,2622.1,2620.8,1.605]
[1748977960291,0.9825,2621.8,2620.8,1.605]
[1748977960455,0.53546892,2621.7,2620.8,1.605]
[1748977960659,0.9825,2621.6,2620.8,1.605]
[1748977964995,0.9825,2621.6,2620.9,10.0]
[1748977965211,0.9825,2621.6,2620.8,1.605]
[1748977969317,0.9825,2621.6,2620.9,4.35218923]
[1748977974286,0.9825,2621.6,2621.1,0.6]
[1748977975520,1.51596892,2621.6,2621.1,0.6]
[1748977977215,0.9825,2621.6,2621.2,4.35218923]
[1748977977597,0.9825,2621.6,2621.1,0.6]
[1748977978000,0.9325,2621.6,2621.1,0.6]
[1748977981112,0.9325,2621.6,2621.2,1.603]
[1748977981514,0.9325,2621.6,2621.3,1.603]
[1748977982429,4.35218923,2621.6,2621.3,1.603]
[1748977982730,0.9894,2621.4,2621.3,1.603]
[1748977982915,0.9894,2621.4,2621.0,1.603]
[1748977992034,0.9426,2621.8,2621.0,6.00518923]
[1748977993222,0.9426,2621.8,2621.0,1.603]
[1748977994123,0.9426,2621.8,2621.0,5.95518923]
[1748977997237,0.9426,2621.8,2621.0,7.806]
[1748977998123,0.9426,2621.8,2621.1,1.603]
[1748977999318,0.9426,2621.8,2621.2,1.603]
[1748978000644,1.0144,2621.7,2621.2,1.603]
[1748978002247,1.0144,2621.7,2621.2,1.98028874]
[1748978019381,1.0144,2621.7,2621.4,10.0]
[1748978020159,1.0144,2621.7,2621.2,0.37728874]
[1748978020503,1.0144,2621.7,2621.3,1.602]
[1748978022613,4.35218923,2621.7,2621.2,0.37330864]
[1748978022760,0.9885,2621.4,2620.9,1.602]
[1748978041293,0.9885,2621.4,2621.0,1.602]
[1748978050455,0.9731,2621.2,2620.5,1.6]
[1748978051454,4.35218923,2621.1,2620.5,1.6]
[1748978051658,4.35218923,2621.1,2620.2,8.233]
[1748978051659,0.9731,2620.8,2620.4,1.6]
[1748978051957,0.53252892,2620.8,2620.3,1.6]
[1748978052147,1.036,2620.7,2620.3,1.6]
[1748978052548,1.036,2620.6,2620.3,1.6]
[1748978052868,1.036,2620.6,2620.2,9.833]
[1748978055453,1.036,2620.6,2620.2,8.233]
[1748978055763,0.9677,2620.4,2620.2,8.233]
[1748978056859,0.9677,2620.4,2620.0,1.6]
[1748978057931,0.9677,2620.4,2619.8,0.38204174]
[1748978058161,0.9677,2620.4,2620.0,1.601]
[1748978059966,0.9677,2620.4,2619.8,1.601]
[1748978060161,0.58587082,2620.3,2619.8,1.601]
[1748978060366,1.047,2620.2,2619.8,1.601]
[1748978060832,4.35218923,2620.1,2619.5,0.37476646]
[1748978061035,1.047,2620.0,2619.4,1.601]
[1748978062276,1.047,2620.0,2619.6,4.35218923]
[1748978062586,0.9862,2620.2,2619.8,4.35218923]
[1748978062868,0.9862,2620.2,2619.6,4.35218923]
[1748978072818,0.9862,2620.2,2619.7,1.601]
[1748978073394,0.9862,2620.2,2619.8,1.601]
[1748978074071,0.9862,2620.2,2619.9,1.601]
[1748978076004,0.9862,2620.2,2619.7,1.599]
[1748978077647,0.9862,2620.2,2619.6,1.599]
[1748978078152,1.0137,2620.1,2619.4,10.0]
[1748978078353,1.0137,2620.1,2619.5,11.599]
[1748978081749,1.0137,2620.1,2619.5,1.599]
[1748978084393,1.0137,2620.1,2619.6,1.599]
[1748978087607,1.0137,2620.1,2619.6,5.95118923]
[1748978087817,1.0137,2620.1,2619.7,2.244816]
[1748978087986,1.0137,2620.1,2619.7,10.0]
[1748978088190,1.0137,2620.1,2619.6,5.95118923]
[1748978088497,1.0137,2620.1,2619.7,1.599]
[1748978089326,1.0137,2620.1,2619.3,10.0]
[1748978089622,1.0137,2620.1,2619.7,1.599]
[1748978101254,1.0137,2620.1,2619.4,0.38049404]
[1748978101455,1.0137,2620.1,2619.6,1.599]
[1748978101615,0.9738,2619.9,2619.6,1.599]
[1748978101815,0.9738,2619.9,2619.4,0.38566547]
[1748978102017,0.9738,2619.7,2619.3,1.599]
[1748978103843,0.9738,2619.7,2619.3,1.97601597]
[1748978105663,0.9738,2619.7,2619.2,1.6]
[1748978105966,1.0707,2619.5,2619.2,1.6]
[1748978106168,4.35218923,2619.4,2618.8,8.61958388]
[1748978106374,1.0707,2619.3,2618.8,10.21758388]
[1748978106882,1.0612,2619.1,2618.8,1.598]
[1748978111559,1.0612,2619.1,2618.5,1.598]
[1748978113069,1.0612,2619.1,2618.5,1.6483]
[1748978113290,1.0612,2619.1,2618.5,2.02628615]
[1748978114058,1.0612,2619.1,2618.5,1.97598615]
[1748978118692,1.0612,2619.1,2618.5,1.599]
[1748978120429,4.35218923,2620.0,2618.8,4.35218923]
[1748978120591,1.0402,2619.8,2618.8,4.35218923]
[1748978123420,1.0402,2619.8,2619.2,4.35218923]
[1748978123619,1.0402,2619.8,2619.1,1.599]
[1748978124226,0.53442399,2619.8,2619.1,1.599]
[1748978125452,0.02,2620.9,2619.6,4.35218923]
[1748978125609,4.35218923,2620.7,2619.7,1.599]
[1748978125797,0.02,2620.9,2619.7,1.599]
[1748978125798,4.35218923,2620.5,2619.7,1.599]
[1748978126998,4.35218923,2620.1,2619.3,1.598]
[1748978127203,0.9947,2620.0,2619.3,1.598]
[1748978127505,0.9947,2620.0,2619.4,1.598]
[1748978131348,0.9947,2620.0,2619.2,4.35218923]
[1748978131541,0.9947,2620.0,2619.1,1.03385317]
[1748978131542,0.9947,2620.0,2619.4,1.598]
[1748978133726,0.9947,2620.0,2619.5,0.5493]
[1748978135164,1.0239,2620.7,2619.6,4.35218923]
[1748978135457,4.35218923,2620.8,2619.6,4.35218923]
[1748978135458,1.0239,2620.5,2619.6,4.35218923]
[1748978135663,1.0239,2620.5,2619.7,4.35218923]
[1748978137146,1.0239,2620.5,2619.5,14.35218923]
[1748978137825,1.0239,2620.5,2619.5,4.35218923]
[1748978138226,1.0239,2620.5,2619.6,10.0]
[1748978138533,1.0239,2620.5,2619.7,10.0]
[1748978138737,1.0239,2620.5,2619.7,4.057262]
[1748978138956,1.0312,2620.8,2620.0,4.35218923]
[1748978139155,1.0312,2620.8,2620.1,1.597]
[1748978139355,1.0312,2620.8,2620.2,4.35218923]
[1748978139562,1.0312,2620.8,2620.1,1.597]
[1748978139763,1.0312,2620.8,2620.1,1.97547093]
[1748978140846,1.0312,2620.8,2620.2,14.35218923]
[1748978141052,1.0312,2620.8,2620.2,4.35218923]
[1748978141252,1.0312,2620.8,2620.1,1.97547093]